[Event "4th Batumi Cup 2018"]
[Site "Batumi"]
[Date "2018.07.07"]
[Round "6"]
[White "Eynullayev, Altay"]
[Black "Bashirov, Teymur"]
[Result "1-0"]
[ECO "E09"]
[WhiteElo "2134"]
[BlackElo "2379"]
[Annotator "NA"]
[PlyCount "114"]
[EventDate "2018.07.03"]
[EventType "swiss"]
[EventCountry "GEO"]
[SourceTitle "playchess.com"]
[Source "ChessBase"]
[SourceQuality "1"]
[TimeControl "40/5400+30:1800+30"]

1. d4 {[%emt 0:00:00]} d5 {[%emt 0:00:00]} 2. c4 {[%emt 0:00:00]} e6 {[%emt 0:00:00]} 3. Nf3 {[%emt 0:00:00]} Nf6 {[%emt 0:00:05]} 4. g3 {[%emt 0:00:00]} Bb4+ {[%emt 0:00:15]} 5. Bd2 {[%emt 0:00:01]} Be7 {[%emt 0:00:09]} 6. Bg2 {[%emt 0:00:04]} O-O {[%emt 0:00:41]} 7. O-O {[%emt 0:00:06]} c6 {[%emt 0:00:49]} 8. Qc2 {[%emt 0:00:22]} Nbd7 {[%emt 0:02:41]} 9. Rd1 {[%emt 0:00:15]} b6 {[%emt 0:00:38]} 10. Bf4 {[%emt 0:00:06]} Nh5 {[%emt 0:05:42]} 11. Bc1 {[%emt 0:11:03]} Nhf6 {[%emt 0:00:31]} 12. Nbd2 {[%emt 0:00:21]} Bb7 {[%emt 0:00:32]} 13. e4 {[%emt 0:00:38]} dxe4 {[%emt 0:01:47]} 14. Nxe4 {[%emt 0:00:04]} Nxe4 {[%emt 0:00:08]} 15. Qxe4 {[%emt 0:00:02]} Qc7 {[%emt 0:02:58]} 16. Bf4 {[%emt 0:10:05]} Bd6 {[%emt 0:04:49]} 17. Bxd6 {[%emt 0:02:54]} Qxd6 {[%emt 0:00:03]} 18. c5 {[%emt 0:01:26] E09: Closed Catalan: Main Line: 7 Qc2 c6 8 Nbd2} Qc7 {[%emt 0:14:57]} (18... Qe7 19. b4 a5 20. a3 Rfd8 21. Ne5 Nxe5 22. Qxe5 axb4 23. axb4 b5 24. h4 Qd7 25. Bf3 h6 {0-1 (63) Khairullin,I (2613)-Krapivin,A (2500) St Petersburg 2009}) 19. Rac1 {[%emt 0:02:27]} Rfd8 {[%emt 0:04:31] [#]} 20. h4 $146 {[%emt 0:14:51]} ({Predecessor:} 20. a3 a5 21. h4 a4 22. Ng5 Nf6 23. Qe5 Qxe5 24. dxe5 Nd7 25. cxb6 Nxb6 {1-0 (72) Grabarczyk,M (2505)-Polishchuk,O (2200) Wroclaw 2003}) 20... Rac8 {[%emt 0:02:33]} 21. Qe2 {[%emt 0:08:21]} Nf6 {[%emt 0:16:32]} 22. Ne5 {[%emt 0:02:17]} Nd5 {[%emt 0:01:48]} 23. Qe4 {[%emt 0:11:25]} b5 {[%emt 0:12:08]} 24. a3 {[%emt 0:06:37]} Re8 {[%emt 0:02:08]} 25. Rd3 {[%emt 0:01:19]} Rcd8 {[%emt 0:01:08]} 26. Rcd1 {[%emt 0:03:02]} Re7 {[%emt 0:01:31]} 27. Rf3 {[%emt 0:01:51]} Bc8 $11 {[%emt 0:00:37]} 28. Bf1 {[%emt 0:02:07]} Nf6 {[%emt 0:04:07]} 29. Qxc6 {[%emt 0:04:25]} Bb7 {[%emt 0:02:23]} 30. Qxc7 {[%emt 0:00:28]} Rxc7 {[%emt 0:00:02]} 31. c6 {[%emt 0:02:24]} Ba6 {[%emt 0:04:46]} 32. a4 {[%emt 0:06:12]} Rd5 {[%emt 0:02:13]} 33. axb5 {[%emt 0:06:53]} Bxb5 {[%emt 0:00:29]} 34. Rb3 {[%emt 0:00:10]} a6 {[%emt 0:00:55]} 35. Bc4 {[%emt 0:00:19]} Rd8 {[%emt 0:06:40]} 36. Bxb5 {[%emt 0:00:13]} axb5 {[%emt 0:00:01]} 37. Rxb5 {[%emt 0:00:14]} Kf8 {[%emt 0:00:15]} 38. Rb4 {[%emt 0:03:52]} Nd5 {[%emt 0:03:17]} 39. Rc4 {[%emt 0:00:09]} Ke7 {[%emt 0:00:15]} 40. b4 {[%emt 0:00:00]} f6 {[%emt 0:00:00]} 41. Nf3 {[%emt 0:01:49]} Rb8 {[%emt 0:03:19]} 42. Rb1 {[%emt 0:00:29]} Rb5 {[%emt 0:02:24]} 43. Nd2 {[%emt 0:01:28]} Rc8 {[%emt 0:01:14]} 44. Ne4 {[%emt 0:01:40]} Rcb8 {[%emt 0:07:11]} 45. Ra1 {[%emt 0:01:19]} Rc8 {[%emt 0:06:33]} 46. Ra7+ {[%emt 0:01:06]} Rc7 {[%emt 0:00:03]} 47. Nc3 {[%emt 0:02:01]} Rxa7 {[%emt 0:02:57]} 48. Nxb5 {[%emt 0:00:04]} Ra8 {[%emt 0:01:02]} 49. Nc3 {[%emt 0:03:14]} Nb6 {[%emt 0:09:28]} 50. Rc5 {[%emt 0:00:14]} Rd8 {[%emt 0:00:36]} 51. c7 {[%emt 0:01:59]} Rc8 {[%emt 0:00:44]} 52. d5 {[%emt 0:14:52]} exd5 {[%emt 0:03:59]} 53. Rc6 {[%emt 0:00:04]} Na8 {[%emt 0:00:38]} 54. Nxd5+ {[%emt 0:00:07]} Kd7 {[%emt 0:00:41]} 55. b5 {[%emt 0:00:05]} Re8 {[%emt 0:00:46]} 56. Rc1 {[%emt 0:01:27]} Kc8 {[%emt 0:00:08]} 57. b6 {[%emt 0:00:05]} Re6 {[%emt 0:00:37]} 1-0

[Event "4th Batumi Cup 2018"]
[Site "Batumi"]
[Date "2018.07.08"]
[Round "7"]
[White "Jumabayev, Rinat"]
[Black "Mosadeghpour, Masoud"]
[Result "1-0"]
[ECO "D76"]
[WhiteElo "2594"]
[BlackElo "2531"]
[Annotator "ChessBase"]
[PlyCount "211"]
[EventDate "2018.07.03"]
[EventType "swiss"]
[EventCountry "GEO"]
[SourceTitle "playchess.com"]
[Source "ChessBase"]
[SourceQuality "1"]
[TimeControl "40/5400+30:1800+30"]

1. Nf3 {[%emt 0:01:52]} Nf6 {[%emt 0:01:43]} 2. c4 {[%emt 0:00:53]} g6 {[%emt 0:00:32]} 3. g3 {[%emt 0:02:31]} Bg7 {[%emt 0:00:08]} 4. Bg2 {[%emt 0:00:04]} O-O {[%emt 0:00:07]} 5. d4 {[%emt 0:00:04]} d5 {[%emt 0:00:23]} 6. cxd5 {[%emt 0:00:04]} Nxd5 {[%emt 0:00:07]} 7. O-O {[%emt 0:00:06]} Nb6 {[%emt 0:00:06]} 8. Nc3 {[%emt 0:00:06]} Nc6 {[%emt 0:00:07]} 9. d5 {[%emt 0:02:27]} Na5 {[%emt 0:00:29]} 10. Qc2 {[%emt 0:00:05]} c6 {[%emt 0:00:50]} 11. dxc6 {[%emt 0:00:05]} Nxc6 {[%emt 0:00:06]} 12. Rd1 {[%emt 0:00:04]} Qe8 {[%emt 0:00:06]} 13. h3 {[%emt 0:18:55]} Bd7 {[%emt 0:05:56]} 14. e4 {[%emt 0:02:52]} Rc8 {[%emt 0:04:55]} 15. Qe2 {[%emt 0:00:58]} Be6 {[%emt 0:23:30]} 16. Nd5 {[%emt 0:08:48]} Bxd5 {[%emt 0:03:07]} 17. exd5 {[%emt 0:00:05]} Nb4 {[%emt 0:00:24]} 18. Ne5 {[%emt 0:15:22]} Rd8 {[%emt 0:07:25]} 19. Be3 {[%emt 0:00:11]} N4xd5 {[%emt 0:01:28]} 20. Bc5 {[%emt 0:01:51]} Na4 {[%emt 0:14:24]} 21. Bd4 {[%emt 0:03:09]} Nc7 {[%emt 0:02:49]} 22. Nc6 {[%emt 0:16:12]} bxc6 {[%emt 0:16:58]} 23. Bxg7 {[%emt 0:00:02]} Kxg7 {[%emt 0:00:41]} 24. Qe5+ {[%emt 0:00:02]} Kg8 {[%emt 0:00:08]} 25. Qxc7 {[%emt 0:00:04]} Nxb2 {[%emt 0:00:57]} 26. Rxd8 {[%emt 0:01:37]} Qxd8 {[%emt 0:00:02]} 27. Qxa7 {[%emt 0:00:06]} e5 {[%emt 0:03:35]} 28. Bxc6 {[%emt 0:03:23]} Qd4 {[%emt 0:00:35]} 29. Qxd4 {[%emt 0:03:21]} exd4 {[%emt 0:00:02]} 30. Rb1 {[%emt 0:02:59]} Rc8 {[%emt 0:02:55]} 31. Bd5 {[%emt 0:02:25]} Na4 {[%emt 0:03:03]} 32. Rb7 {[%emt 0:03:47]} d3 {[%emt 0:03:24]} 33. Rxf7 {[%emt 0:00:24]} Rc1+ {[%emt 0:02:33]} 34. Kg2 {[%emt 0:00:01]} Nc5 {[%emt 0:00:13]} 35. Rf4+ {[%emt 0:01:46]} Kg7 {[%emt 0:00:24]} 36. Rd4 {[%emt 0:00:20]} Kf6 {[%emt 0:00:58]} 37. Bf3 {[%emt 0:03:49]} Rc2 {[%emt 0:00:55]} 38. a4 {[%emt 0:02:08]} d2 {[%emt 0:00:17]} 39. Bd1 {[%emt 0:03:39]} Ra2 {[%emt 0:01:04]} 40. f4 {[%emt 0:00:00]} g5 {[%emt 0:00:00]} 41. Kf2 {[%emt 0:04:24]} gxf4 {[%emt 0:05:09]} 42. gxf4 {[%emt 0:00:58]} Ra3 {[%emt 0:06:48]} 43. Ke2 {[%emt 0:01:46]} Rxh3 {[%emt 0:01:42]} 44. Kxd2 {[%emt 0:00:06]} Ke7 {[%emt 0:12:28]} 45. Rb4 {[%emt 0:10:59]} Kd6 {[%emt 0:01:54]} 46. f5 {[%emt 0:01:39]} Ke5 {[%emt 0:03:09]} 47. Bc2 {[%emt 0:02:09]} h5 {[%emt 0:00:40]} 48. Rb5 {[%emt 0:08:10]} Kd4 {[%emt 0:00:37]} 49. Rb4+ {[%emt 0:00:59]} Ke5 {[%emt 0:00:01]} 50. a5 {[%emt 0:01:10]} Ra3 {[%emt 0:02:41]} 51. Rb5 {[%emt 0:00:05]} Kd4 {[%emt 0:00:05]} 52. f6 {[%emt 0:00:05]} Rf3 {[%emt 0:00:25]} 53. Rb6 {[%emt 0:02:12]} Rf2+ {[%emt 0:00:33]} 54. Kd1 {[%emt 0:00:19]} Ke5 {[%emt 0:01:44]} 55. a6 {[%emt 0:00:56]} Nxa6 {[%emt 0:00:15]} 56. Rxa6 {[%emt 0:00:02]} h4 {[%emt 0:00:48]} 57. f7 {[%emt 0:01:57]} Rxf7 {[%emt 0:00:07]} 58. Rh6 {[%emt 0:00:43]} Rf4 {[%emt 0:00:20]} 59. Ke2 {[%emt 0:00:05]} Kd4 {[%emt 0:00:22]} 60. Rh5 {[%emt 0:00:20]} Rg4 {[%emt 0:00:43]} 61. Kf3 {[%emt 0:00:36]} Rg3+ {[%emt 0:00:17]} 62. Kf4 {[%emt 0:01:06]} Rh3 {[%emt 0:00:36]} 63. Be4 {[%emt 0:00:44]} Rh2 {[%emt 0:00:09]} 64. Bf3 {[%emt 0:00:08]} Rb2 {[%emt 0:00:52]} 65. Rxh4 {[%emt 0:00:05]} Rb8 {[%emt 0:00:07]} 66. Be4 {[%emt 0:01:59]} Re8 {[%emt 0:00:45]} 67. Bf5 {[%emt 0:00:45]} Re1 {[%emt 0:00:07]} 68. Rh8 {[%emt 0:00:20]} Rf1+ {[%emt 0:00:11]} 69. Kg5 {[%emt 0:00:10]} Rg1+ {[%emt 0:00:32]} 70. Kf6 {[%emt 0:00:03]} Ra1 {[%emt 0:00:21]} 71. Rh4+ {[%emt 0:00:21]} Ke3 {[%emt 0:00:38]} 72. Re4+ {[%emt 0:00:09]} Kf3 {[%emt 0:00:08]} 73. Rb4 {[%emt 0:00:53]} Ke3 {[%emt 0:00:17]} 74. Be4 {[%emt 0:01:16]} Ra5 {[%emt 0:00:51]} 75. Ke6 {[%emt 0:00:06]} Ra7 {[%emt 0:01:16]} 76. Bd5 {[%emt 0:00:38]} Rh7 {[%emt 0:00:09]} 77. Kd6 {[%emt 0:00:23]} Rh2 {[%emt 0:00:28]} 78. Rg4 {[%emt 0:00:48]} Rh8 {[%emt 0:01:46]} 79. Kc5 {[%emt 0:02:01]} Rc8+ {[%emt 0:00:11]} 80. Bc6 {[%emt 0:00:01]} Rc7 {[%emt 0:01:15]} 81. Re4+ {[%emt 0:00:11]} Kf2 {[%emt 0:00:26]} 82. Rf4+ {[%emt 0:00:36]} Ke3 {[%emt 0:00:30]} 83. Rf3+ {[%emt 0:00:04]} Kd2 {[%emt 0:00:07]} 84. Kd5 {[%emt 0:01:20]} Rc8 {[%emt 0:00:21]} 85. Rh3 {[%emt 0:00:49]} Kc2 {[%emt 0:00:31]} 86. Bb5 {[%emt 0:00:19]} Rd8+ {[%emt 0:00:56]} 87. Ke4 {[%emt 0:01:15]} Kd2 {[%emt 0:00:30]} 88. Bc4 {[%emt 0:00:11]} Rf8 {[%emt 0:01:04]} 89. Bd5 {[%emt 0:00:12]} Re8+ {[%emt 0:00:36]} 90. Kd4 {[%emt 0:00:01]} Rf8 {[%emt 0:00:07]} 91. Rh2+ {[%emt 0:00:10]} Ke1 {[%emt 0:00:26]} 92. Ke3 {[%emt 0:00:18]} Re8+ {[%emt 0:00:37]} 93. Be4 {[%emt 0:00:02]} Rf8 {[%emt 0:00:06]} 94. Rh1+ {[%emt 0:01:35]} Rf1 {[%emt 0:00:04]} 95. Rh8 {[%emt 0:00:05]} Rf2 {[%emt 0:00:15]} 96. Rh1+ {[%emt 0:00:19]} Rf1 {[%emt 0:00:05]} 97. Rh2 {[%emt 0:00:03]} Rf8 {[%emt 0:00:05]} 98. Re2+ {[%emt 0:01:51]} Kd1 {[%emt 0:00:05]} 99. Rd2+ {[%emt 0:00:55]} Ke1 {[%emt 0:00:17]} 100. Rb2 {[%emt 0:00:51]} Rd8 {[%emt 0:00:05]} 101. Re2+ {[%emt 0:00:23]} Kd1 {[%emt 0:00:14]} 102. Rh2 {[%emt 0:00:05]} Kc1 {[%emt 0:00:11]} 103. Rc2+ {[%emt 0:00:07]} Kd1 {[%emt 0:00:07]} 104. Rc5 {[%emt 0:00:45]} Re8 {[%emt 0:01:06]} 105. Rc7 {[%emt 0:00:05]} Re6 {[%emt 0:00:44]} 106. Rb7 {[%emt 0:00:21]} 1-0

[Event "4th Batumi Cup 2018"]
[Site "Batumi"]
[Date "2018.07.08"]
[Round "7"]
[White "Smirnov, Pavel"]
[Black "Tutisani, Noe"]
[Result "1/2-1/2"]
[ECO "C84"]
[WhiteElo "2576"]
[BlackElo "2469"]
[Annotator "ChessBase"]
[PlyCount "72"]
[EventDate "2018.07.03"]
[EventType "swiss"]
[EventCountry "GEO"]
[SourceTitle "playchess.com"]
[Source "ChessBase"]
[SourceQuality "1"]
[TimeControl "40/5400+30:1800+30"]

1. e4 {[%emt 0:08:13]} e5 {[%emt 0:00:29]} 2. Nf3 {[%emt 0:00:07]} Nc6 {[%emt 0:00:06]} 3. Bb5 {[%emt 0:00:23]} a6 {[%emt 0:00:07]} 4. Ba4 {[%emt 0:00:05]} Nf6 {[%emt 0:00:07]} 5. O-O {[%emt 0:00:08]} b5 {[%emt 0:00:16]} 6. Bb3 {[%emt 0:00:07]} Bb7 {[%emt 0:00:05]} 7. d3 {[%emt 0:00:32]} Be7 {[%emt 0:00:33]} 8. Re1 {[%emt 0:02:20]} d6 {[%emt 0:00:49]} 9. a3 {[%emt 0:01:07]} O-O {[%emt 0:00:35]} 10. Nc3 {[%emt 0:00:06]} Qd7 {[%emt 0:01:24]} 11. Nd5 {[%emt 0:01:23]} Nxd5 {[%emt 0:01:10]} 12. exd5 {[%emt 0:02:43]} Nd4 {[%emt 0:01:25]} 13. Nxd4 {[%emt 0:00:04]} exd4 {[%emt 0:00:04]} 14. Qf3 {[%emt 0:00:48]} Bf6 {[%emt 0:02:30]} 15. Bd2 {[%emt 0:00:06]} Rfe8 {[%emt 0:00:36]} 16. a4 {[%emt 0:06:07]} Rxe1+ {[%emt 0:06:32]} 17. Bxe1 {[%emt 0:00:10]} Re8 {[%emt 0:02:06]} 18. axb5 {[%emt 0:08:37]} axb5 {[%emt 0:01:20]} 19. Bd2 {[%emt 0:08:43]} Ra8 {[%emt 0:06:01]} 20. Rxa8+ {[%emt 0:03:07]} Bxa8 {[%emt 0:00:04]} 21. Qe2 {[%emt 0:06:47]} h6 {[%emt 0:04:15]} 22. h3 {[%emt 0:12:23]} Bb7 {[%emt 0:03:39]} 23. Kf1 {[%emt 0:01:53]} Qc8 {[%emt 0:01:56]} 24. Qg4 {[%emt 0:02:46]} Qa8 {[%emt 0:06:47]} 25. Qd7 {[%emt 0:01:21]} Bxd5 {[%emt 0:01:11]} 26. Bxd5 {[%emt 0:00:10]} Qxd5 {[%emt 0:00:04]} 27. Qxc7 {[%emt 0:00:10]} Kh7 {[%emt 0:08:23]} 28. b3 {[%emt 0:05:40]} h5 {[%emt 0:01:21]} 29. Bf4 {[%emt 0:06:47]} Be5 {[%emt 0:00:47]} 30. Bxe5 {[%emt 0:00:06]} dxe5 {[%emt 0:00:07]} 31. b4 {[%emt 0:02:32]} Kg6 {[%emt 0:02:58]} 32. f3 {[%emt 0:01:43]} f6 {[%emt 0:04:27]} 33. Kf2 {[%emt 0:00:40]} Qa2 {[%emt 0:01:22]} 34. Qc6 {[%emt 0:04:22]} Qb1 {[%emt 0:00:22]} 35. Qxb5 {[%emt 0:01:11]} Qxc2+ {[%emt 0:00:06]} 36. Kg3 {[%emt 0:00:07]} Qd2 {[%emt 0:02:15]} 1/2-1/2

[Event "4th Batumi Cup 2018"]
[Site "Batumi"]
[Date "2018.07.08"]
[Round "7"]
[White "Pourramezanali, Amirreza"]
[Black "Mgeladze, Tamaz"]
[Result "1/2-1/2"]
[ECO "B53"]
[WhiteElo "2537"]
[BlackElo "2374"]
[Annotator "ChessBase"]
[PlyCount "73"]
[EventDate "2018.07.03"]
[EventType "swiss"]
[EventCountry "GEO"]
[SourceTitle "playchess.com"]
[Source "ChessBase"]
[SourceQuality "1"]
[TimeControl "40/5400+30:1800+30"]

1. e4 {[%emt 0:00:00]} c5 {[%emt 0:04:28]} 2. Nf3 {[%emt 0:00:00]} d6 {[%emt 0:00:08]} 3. d4 {[%emt 0:00:00]} Nf6 {[%emt 0:00:06]} 4. dxc5 {[%emt 0:00:17]} Nxe4 {[%emt 0:00:50]} 5. cxd6 {[%emt 0:00:08]} Nc6 {[%emt 0:00:13]} 6. Bd3 {[%emt 0:05:54]} Nxd6 {[%emt 0:00:12]} 7. O-O {[%emt 0:00:04]} g6 {[%emt 0:00:03]} 8. Nc3 {[%emt 0:00:05]} Bg7 {[%emt 0:00:05]} 9. Re1 {[%emt 0:00:15]} O-O {[%emt 0:00:43]} 10. Bg5 {[%emt 0:00:16]} Bf5 {[%emt 0:04:12]} 11. Nd5 {[%emt 0:04:23]} Re8 {[%emt 0:07:34]} 12. Bxf5 {[%emt 0:12:29]} Nxf5 {[%emt 0:00:15]} 13. g4 {[%emt 0:00:27]} Nd6 {[%emt 0:01:06]} 14. c3 {[%emt 0:03:38]} h6 {[%emt 0:03:56]} 15. Bh4 {[%emt 0:02:30]} Qd7 {[%emt 0:01:25]} 16. h3 {[%emt 0:00:23]} Rad8 {[%emt 0:00:13]} 17. Qd3 {[%emt 0:12:30]} g5 {[%emt 0:07:17]} 18. Bg3 {[%emt 0:03:04]} Nc8 {[%emt 0:00:40]} 19. Rad1 {[%emt 0:08:14]} Nb6 {[%emt 0:00:13]} 20. Nb4 {[%emt 0:08:54]} Nxb4 {[%emt 0:00:29]} 21. Qxd7 {[%emt 0:00:15]} Rxd7 {[%emt 0:00:04]} 22. Rxd7 {[%emt 0:00:31]} Nxd7 {[%emt 0:00:03]} 23. cxb4 {[%emt 0:00:06]} Bxb2 {[%emt 0:00:26]} 24. Rb1 {[%emt 0:00:27]} Bc3 {[%emt 0:01:43]} 25. Rc1 {[%emt 0:01:30]} Bxb4 {[%emt 0:01:24]} 26. Rc7 {[%emt 0:00:07]} Nc5 {[%emt 0:08:31]} 27. Nd4 {[%emt 0:00:09]} a5 {[%emt 0:01:58]} 28. Nf5 {[%emt 0:01:38]} Kf8 {[%emt 0:01:07]} 29. Nxh6 {[%emt 0:01:51]} b6 {[%emt 0:05:27]} 30. Nf5 {[%emt 0:02:23]} Ne6 {[%emt 0:02:50]} 31. Rb7 {[%emt 0:05:19]} Bc5 {[%emt 0:00:06]} 32. Ne3 {[%emt 0:01:04]} Rc8 {[%emt 0:06:14]} 33. Nd5 {[%emt 0:00:48]} Rc6 {[%emt 0:02:36]} 34. Rb8+ {[%emt 0:00:55]} Kg7 {[%emt 0:00:01]} 35. Rb7 {[%emt 0:00:01]} Kf8 {[%emt 0:02:03]} 36. Rb8+ {[%emt 0:00:16]} Kg7 {[%emt 0:00:03]} 37. Rb7 {[%emt 0:00:05]} 1/2-1/2

[Event "4th Batumi Cup 2018"]
[Site "Batumi"]
[Date "2018.07.08"]
[Round "7"]
[White "Sanikidze, Tornike"]
[Black "Pantsulaia, Levan"]
[Result "1/2-1/2"]
[ECO "D25"]
[WhiteElo "2512"]
[BlackElo "2575"]
[Annotator "ChessBase"]
[PlyCount "51"]
[EventDate "2018.07.03"]
[EventType "swiss"]
[EventCountry "GEO"]
[SourceTitle "playchess.com"]
[Source "ChessBase"]
[SourceQuality "1"]
[TimeControl "40/5400+30:1800+30"]

1. d4 {[%emt 0:05:26]} d5 {[%emt 0:00:00]} 2. c4 {[%emt 0:01:04]} c6 {[%emt 0:00:00]} 3. Nf3 {[%emt 0:01:07]} dxc4 {[%emt 0:00:09]} 4. e3 {[%emt 0:03:41]} Be6 {[%emt 0:00:22]} 5. Nc3 {[%emt 0:04:31]} Nf6 {[%emt 0:00:46]} 6. Ng5 {[%emt 0:06:31]} Qc8 {[%emt 0:01:53]} 7. Nxe6 {[%emt 0:06:07]} Qxe6 {[%emt 0:00:09]} 8. a4 {[%emt 0:00:04]} Na6 {[%emt 0:11:40]} 9. a5 {[%emt 0:01:58]} Nb4 {[%emt 0:00:07]} 10. Ra4 {[%emt 0:01:06]} Nd3+ {[%emt 0:00:06]} 11. Bxd3 {[%emt 0:00:13]} cxd3 {[%emt 0:00:05]} 12. Qxd3 {[%emt 0:01:05]} Qd7 {[%emt 0:00:22]} 13. O-O {[%emt 0:02:55]} e6 {[%emt 0:00:06]} 14. Bd2 {[%emt 0:07:30]} Be7 {[%emt 0:03:02]} 15. Qc2 {[%emt 0:06:20]} O-O {[%emt 0:00:32]} 16. Rc4 {[%emt 0:00:51]} b5 {[%emt 0:11:25]} 17. axb6 {[%emt 0:02:24]} axb6 {[%emt 0:00:05]} 18. Ne2 {[%emt 0:03:11]} c5 {[%emt 0:06:41]} 19. dxc5 {[%emt 0:02:55]} bxc5 {[%emt 0:00:05]} 20. e4 {[%emt 0:17:03]} Rfb8 {[%emt 0:06:58]} 21. Rb1 {[%emt 0:04:56]} Qb5 {[%emt 0:03:08]} 22. Bg5 {[%emt 0:03:19]} Ra2 {[%emt 0:16:45]} 23. e5 {[%emt 0:01:39]} Nd5 {[%emt 0:00:07]} 24. Bxe7 {[%emt 0:01:27]} Nxe7 {[%emt 0:00:05]} 25. Rxc5 {[%emt 0:00:12]} Qb6 {[%emt 0:00:14]} 26. Rc7 {[%emt 0:06:46]} 1/2-1/2

[Event "4th Batumi Cup 2018"]
[Site "Batumi"]
[Date "2018.07.08"]
[Round "7"]
[White "Maghalashvili, Davit"]
[Black "Lomsadze, Davit"]
[Result "1-0"]
[ECO "E63"]
[WhiteElo "2508"]
[BlackElo "2348"]
[Annotator "ChessBase"]
[PlyCount "61"]
[EventDate "2018.07.03"]
[EventType "swiss"]
[EventCountry "GEO"]
[SourceTitle "playchess.com"]
[Source "ChessBase"]
[SourceQuality "1"]
[TimeControl "40/5400+30:1800+30"]

1. Nf3 {[%emt 0:01:15]} Nf6 {[%emt 0:00:00]} 2. c4 {[%emt 0:00:10]} g6 {[%emt 0:00:00]} 3. g3 {[%emt 0:00:20]} Bg7 {[%emt 0:00:05]} 4. Bg2 {[%emt 0:00:07]} O-O {[%emt 0:00:05]} 5. O-O {[%emt 0:00:36]} d6 {[%emt 0:00:27]} 6. d4 {[%emt 0:00:22]} Nc6 {[%emt 0:01:40]} 7. Nc3 {[%emt 0:00:48]} a6 {[%emt 0:02:03]} 8. Bf4 {[%emt 0:01:06]} Bd7 {[%emt 0:04:04]} 9. Rc1 {[%emt 0:02:58]} Rb8 {[%emt 0:03:35]} 10. a3 {[%emt 0:01:40]} b5 {[%emt 0:08:24]} 11. cxb5 {[%emt 0:00:32]} axb5 {[%emt 0:02:37]} 12. b4 {[%emt 0:00:07]} Na7 {[%emt 0:04:42]} 13. e4 {[%emt 0:03:48]} Nc8 {[%emt 0:08:51]} 14. Re1 {[%emt 0:02:41]} Nb6 {[%emt 0:04:43]} 15. Bf1 {[%emt 0:01:47]} c6 {[%emt 0:03:10]} 16. e5 {[%emt 0:04:57]} Ne8 {[%emt 0:01:02]} 17. d5 {[%emt 0:02:55]} Nxd5 {[%emt 0:06:06]} 18. Nxd5 {[%emt 0:00:57]} cxd5 {[%emt 0:00:11]} 19. Qxd5 {[%emt 0:00:07]} e6 {[%emt 0:01:01]} 20. Qd2 {[%emt 0:00:50]} d5 {[%emt 0:00:11]} 21. Nd4 {[%emt 0:04:25]} Nc7 {[%emt 0:03:57]} 22. Bg5 {[%emt 0:00:54]} f6 {[%emt 0:00:27]} 23. exf6 {[%emt 0:00:49]} Bxf6 {[%emt 0:00:04]} 24. Bf4 {[%emt 0:00:54]} Rc8 {[%emt 0:01:03]} 25. Rxc7 {[%emt 0:03:46]} Rxc7 {[%emt 0:00:14]} 26. Bxc7 {[%emt 0:00:08]} Qxc7 {[%emt 0:00:14]} 27. Nxe6 {[%emt 0:00:08]} Bxe6 {[%emt 0:01:22]} 28. Rxe6 {[%emt 0:03:30]} d4 {[%emt 0:02:05]} 29. Bxb5 {[%emt 0:01:42]} Qc3 {[%emt 0:00:36]} 30. Qd3 {[%emt 0:01:11]} Bg7 {[%emt 0:02:34]} 31. Kg2 {[%emt 0:01:16]} 1-0

[Event "4th Batumi Cup 2018"]
[Site "Batumi"]
[Date "2018.07.08"]
[Round "7"]
[White "Nigmatov, Ortik"]
[Black "Khomeriki, Nino"]
[Result "1-0"]
[ECO "C84"]
[WhiteElo "2461"]
[BlackElo "2257"]
[Annotator "ChessBase"]
[PlyCount "95"]
[EventDate "2018.07.03"]
[EventType "swiss"]
[EventCountry "GEO"]
[SourceTitle "playchess.com"]
[Source "ChessBase"]
[SourceQuality "1"]
[TimeControl "40/5400+30:1800+30"]

1. e4 {[%emt 0:00:00]} e5 {[%emt 0:01:31]} 2. Nf3 {[%emt 0:00:00]} Nc6 {[%emt 0:00:05]} 3. Bb5 {[%emt 0:00:00]} a6 {[%emt 0:00:06]} 4. Ba4 {[%emt 0:00:00]} Nf6 {[%emt 0:00:05]} 5. O-O {[%emt 0:00:00]} Be7 {[%emt 0:00:01]} 6. d3 {[%emt 0:00:02]} b5 {[%emt 0:00:06]} 7. Bb3 {[%emt 0:00:04]} d6 {[%emt 0:00:13]} 8. a4 {[%emt 0:00:04]} Na5 {[%emt 0:00:27]} 9. Ba2 {[%emt 0:00:28]} c5 {[%emt 0:00:51]} 10. Nc3 {[%emt 0:08:49]} b4 {[%emt 0:01:29]} 11. Ne2 {[%emt 0:00:15]} b3 {[%emt 0:01:45]} 12. cxb3 {[%emt 0:00:15]} O-O {[%emt 0:04:39]} 13. b4 {[%emt 0:01:29]} cxb4 {[%emt 0:00:53]} 14. Bd2 {[%emt 0:01:31]} Rb8 {[%emt 0:01:55]} 15. h3 {[%emt 0:04:22]} Re8 {[%emt 0:07:34]} 16. Ng3 {[%emt 0:01:39]} Bf8 {[%emt 0:10:00]} 17. d4 {[%emt 0:11:10]} exd4 {[%emt 0:05:18]} 18. Nxd4 {[%emt 0:00:35]} g6 {[%emt 0:00:39]} 19. Qf3 {[%emt 0:07:32]} Bg7 {[%emt 0:15:41]} 20. Rfe1 {[%emt 0:00:57]} Qe7 {[%emt 0:01:12]} 21. Rac1 {[%emt 0:03:04]} Nd7 {[%emt 0:05:59]} 22. Bg5 {[%emt 0:19:11]} Qf8 {[%emt 0:02:53]} 23. Qd1 {[%emt 0:05:26]} Nc5 {[%emt 0:01:41]} 24. h4 {[%emt 0:11:36]} Bd7 {[%emt 0:04:22]} 25. Be3 {[%emt 0:08:27]} Bxa4 {[%emt 0:02:02]} 26. Qe2 {[%emt 0:00:01]} b3 {[%emt 0:08:14]} 27. Bb1 {[%emt 0:00:06]} Nc6 {[%emt 0:00:22]} 28. Red1 {[%emt 0:02:59]} Nxd4 {[%emt 0:07:14]} 29. Bxd4 {[%emt 0:00:02]} Bb5 {[%emt 0:01:14]} 30. Qe3 {[%emt 0:00:54]} Bxd4 {[%emt 0:00:34]} 31. Rxd4 {[%emt 0:00:10]} a5 {[%emt 0:03:18]} 32. Qd2 {[%emt 0:00:52]} a4 {[%emt 0:01:52]} 33. Rxd6 {[%emt 0:00:19]} Rbd8 {[%emt 0:09:37]} 34. e5 {[%emt 0:00:27]} Nd3 {[%emt 0:01:54]} 35. Bxd3 {[%emt 0:09:39]} Rxd6 {[%emt 0:00:05]} 36. exd6 {[%emt 0:00:08]} Qxd6 {[%emt 0:00:02]} 37. Rc3 {[%emt 0:01:43]} a3 {[%emt 0:02:03]} 38. bxa3 {[%emt 0:00:13]} Rd8 {[%emt 0:00:33]} 39. Ne4 {[%emt 0:02:36]} Qxa3 {[%emt 0:00:29]} 40. Qg5 {[%emt 0:00:00]} Qa1+ {[%emt 0:00:00]} 41. Kh2 {[%emt 0:02:42]} Rxd3 {[%emt 0:01:30]} 42. Nf6+ {[%emt 0:01:51]} Kf8 {[%emt 0:01:32]} 43. Rc8+ {[%emt 0:00:08]} Ke7 {[%emt 0:00:12]} 44. Ng8+ {[%emt 0:00:41]} Kd7 {[%emt 0:01:11]} 45. Qd8+ {[%emt 0:00:07]} Ke6 {[%emt 0:00:03]} 46. Qe7+ {[%emt 0:00:13]} Kf5 {[%emt 0:00:07]} 47. Rc5+ {[%emt 0:00:24]} Kf4 {[%emt 0:00:19]} 48. Qg5+ {[%emt 0:00:07]} 1-0